Cogmind - Beta 13 @@@ ROGUE MODE // 2024.04.02 @ 21:12:10 Player: Cacho Result: Destroyed by G-47 Trooper with Particle Gun Performance ------------- Evolutions (2) 1000 Regions Visited (4) 800 Robots Destroyed (8) 40 Value Destroyed (78) 78 Prototype IDs (1) 20 Alien Tech Used (0) 0 Bonus (0) 0 TOTAL SCORE: 1938 Bonus ------- None Cogmind --------- Core Integrity 0/550 Matter 107/300 Energy 100/100 System Corruption 0% Temperature Cool (16) Movement Rolling (100) Location -8/Materials Parts ------- > --- POWER (2) -------- (None) > --- PROPULSION (5) --- Armored Treads Armored Treads Armored Treads Compact Wheel > --- UTILITY (2) ------ Transport Network Coupler Layered Light Armor Plating > --- WEAPON (2) ------- Minigun Minigun > --- INVENTORY (5) ---- Signal Interpreter Layered Light Armor Plating Peak State ------------ > --- POWER ------------ (None) > --- PROPULSION ------- Armored Treads Armored Treads Armored Treads Compact Wheel > --- UTILITY ---------- Transport Network Coupler Layered Light Armor Plating > --- WEAPON ----------- Minigun Minigun > --- INVENTORY -------- Signal Interpreter Layered Light Armor Plating [Rating: 21] Favorites ----------- Power Light Ion Engine Engine Light Ion Engine Propulsion Flight Unit Treads Armored Treads Leg Aluminum Leg Wheel Compact Wheel Hover Unit Hover Unit Flight Unit Flight Unit Utility Sensor Array Device Sensor Array Storage Small Storage Unit Processor Signal Interpreter Protection Layered Light Armor Plating Weapon Light Assault Rifle Energy Gun Small Laser Energy Cannon Beam Cannon Ballistic Gun Light Assault Rifle Slashing Weapon Axe Build | -11 -10 -9 -9 -8 ------- Run | Yrd Mat Mat Min Mat Slots Evolved 4 | . . 2 . 2 Power 1 | . . 1 . . Propulsion 3 | . . 1 . 2 Utility . | . . . . . Weapon . | . . . . . Parts Attached 33 | . 10 4 1 18 Power 1 | . . 1 . . Engine 1 | . . 1 . . Core . | . . . . . Reactor . | . . . . . Propulsion 12 | . 5 1 . 6 Treads 3 | . . . . 3 Leg . | . . . . . Wheel 2 | . . . . 2 Hover 4 | . 3 . . 1 Flight 3 | . 2 1 . . Utility 10 | . 3 . 1 6 Device 3 | . 2 . . 1 Storage . | . . . . . Processor 3 | . 1 . . 2 Hackware . | . . . . . Protection 4 | . . . 1 3 Artifact . | . . . . . Weapon 10 | . 2 2 . 6 Energy Gun 2 | . . 1 . 1 Energy Cannon 1 | . 1 . . . Ballistic Gun 6 | . 1 1 . 4 Ballistic Cannon . | . . . . . Launcher . | . . . . . Special Weapon . | . . . . . Impact Weapon . | . . . . . Slashing Weapon 1 | . . . . 1 Piercing Weapon . | . . . . . Special Melee Weapon . | . . . . . Unidentified Prototypes 1 | . . . . 1 Parts Lost 12 | . . . . 12 Power 1 | . . . . 1 Propulsion 5 | . . . . 5 Utility 3 | . . . . 3 Weapon 3 | . . . . 3 Highest Loss Streak 12 | . . . . 12 To Critical Strikes . | . . . . . Average Slot Usage (%) 80 | . 88 100 100 54 Engine 14 | . 14 22 22 8 Hover 7 | . 21 . . . Flight 16 | . 3 33 33 15 Device 7 | . 7 11 11 3 Storage 4 | . 13 . . . Processor 5 | . . 11 9 6 Protection 1 | . . . 1 3 Energy Gun 4 | . . 11 11 3 Ballistic Gun 12 | . 20 11 11 5 Naked Turns . | . . . . . Heaviest Build 14 | 11 12 11 11 14 Greatest Support 60 | 20 20 12 12 60 Greatest Overweight (x) 2 | . 1 . . 2 Average Overweight (x) . | . . . . . Largest Inventory Capacity 8 | . 8 5 5 5 Average Capacity 6 | . 7 5 5 5 Most Carried 8 | . 8 4 3 5 Average Carried 4 | . 7 1 2 3 Final Capacity 8 | 8 5 5 5 5 Final Carried 6 | 6 5 2 3 2 Class Distribution -------------------- 100% | Mutant Dominant Class ---------------- Mutant | -10/Materials Mutant | -9/Materials Mutant | -9/Mines Mutant | -8/Materials Resources | -11 -10 -9 -9 -8 ----------- Run | Yrd Mat Mat Min Mat Matter Collected 384 | 196 67 121 . . Remotely . | . . . . . Salvage Created 150 | . 53 . . 97 Parts 17 | . 10 . . 7 Haulers Intercepted 1 | . . . . 1 Recyclers Shooed . | . . . . . Parts Field Recycled . | . . . . . Retrieved Matter . | . . . . . Parts Self-Destructed . | . . . . . Prevented . | . . . . . Kills | -11 -10 -9 -9 -8 ------- Run | Yrd Mat Mat Min Mat Combat Hostiles Destroyed 6 | . 3 . . 3 Guns 6 | . 3 . . 3 Classes Destroyed 3 | . 2 . . 1 Hauler 1 | . . . . 1 Watcher 1 | . 1 . . . Swarmer 6 | . 3 . . 3 Best Kill Streak 3 | . 3 . . 3 Combat Bots Only 3 | . 3 . . 3 Max Kills in Single Turn 1 | . 1 . . 1 Gunslinging . | . . . . . Exploded . | . . . . . Melee . | . . . . . Uniques/NPCs Destroyed . | . . . . . Combat | -11 -10 -9 -9 -8 -------- Run | Yrd Mat Mat Min Mat Hostile Shots Fired 221 | . 25 11 6 179 Missed 70 | . 7 8 3 52 Damage Taken 1906 | . 184 27 43 1652 Core 626 | . 62 . . 564 Absorbed by Shields . | . . . . . Core Remaining (%) 91 | 100 75 . 100 . Volleys Fired 29 | . 11 . 2 16 Largest 2 | . 2 . 2 2 Hottest 60 | . 40 . 60 55 Shots Fired 46 | . 22 . 4 20 Gun 46 | . 22 . 4 20 Cannon . | . . . . . Launcher . | . . . . . Special . | . . . . . Kinetic 40 | . 22 . 2 16 Thermal 6 | . . . 2 4 Explosive . | . . . . . Electromagnetic . | . . . . . Robot Hit Streak 4 | . 3 . . 4 Robot Miss Streak 7 | . 6 . . 7 Penetration Max . | . . . . . Secondary Targets 1 | . 1 . . . Max Gunslinging Chain 1 | . 1 . . . Shots Hit Robots 20 | . 7 . . 13 Core Hits 14 | . 5 . . 9 Critical Kills . | . . . . . Critical Parts Destroyed . | . . . . . Critical Strikes . | . . . . . Melee Attacks 6 | . . . . 6 Impact . | . . . . . Slashing 6 | . . . . 6 Piercing . | . . . . . Sneak Attacks . | . . . . . Combat Hostiles . | . . . . . Follow-up Attacks . | . . . . . Damage Inflicted 312 | . 81 . . 231 Guns 263 | . 81 . . 182 Cannons . | . . . . . Explosions . | . . . . . Melee 43 | . . . . 43 Ramming 6 | . . . . 6 Kinetic 208 | . 81 . . 127 Thermal 55 | . . . . 55 Explosive . | . . . . . Electromagnetic . | . . . . . Impact . | . . . . . Slashing 43 | . . . . 43 Piercing . | . . . . . Highest Corruption . | . . . . . Average Corruption . | . . . . . Corruption Purged . | . . . . . Corruption Blocked . | . . . . . Overload Shots . | . . . . . Overflow Damage . | . . . . . Projectiles . | . . . . . Explosions . | . . . . . Melee . | . . . . . Knockbacks . | . . . . . Impact . | . . . . . Kinetic . | . . . . . Secondary . | . . . . . Self-Inflicted Damage 3 | . . . . 3 Shots . | . . . . . Rammed 1 | . . . . 1 Targets Rammed 1 | . . . . 1 Kicked . | . . . . . Crushed . | . . . . . Highest Temperature 98 | . 8 . 60 98 Average Temperature 27 | . 3 . 33 42 Received Heat Transfer 570 | . . 6 6 558 Siege Activations . | . . . . . Robots Corrupted . | . . . . . Combat Hostiles . | . . . . . Parts Fried . | . . . . . Impact Corruptions . | . . . . . Robots Melted . | . . . . . Combat Hostiles . | . . . . . Parts Melted . | . . . . . Heat Transferred 111 | . . . . 111 Parts Sabotaged . | . . . . . Parts Stolen . | . . . . . Parts Stripped . | . . . . . Power Chain Reactions . | . . . . . Alert | -11 -10 -9 -9 -8 ------- Run | Yrd Mat Mat Min Mat Peak Influence 272 | . 92 272 165 125 Initial 105 | . . 38 105 64 Average 81 | . 33 138 137 80 Maximum Alert Level 1 | . . 1 . . Low Security (%) 97 | . 100 82 100 100 Level 1 2 | . . 17 . . Level 2 . | . . . . . Level 3 . | . . . . . Level 4 . | . . . . . Level 5 . | . . . . . High Security . | . . . . . Max Security . | . . . . . Squads Dispatched 4 | . . 2 . 2 Investigation 3 | . . 2 . 1 Extermination . | . . . . . Reinforcement 1 | . . . . 1 Assault . | . . . . . Garrison . | . . . . . Intercept . | . . . . . Searches Triggered . | . . . . . Construction Impeded . | . . . . . Haulers Reinforced . | . . . . . Active Scanning Responses . | . . . . . Cargo Convoy Interrupts . | . . . . . Stealth | -11 -10 -9 -9 -8 --------- Run | Yrd Mat Mat Min Mat Distress Signals 5 | . . 3 . 2 Communications Jammed . | . . . . . Distress Signals . | . . . . . Times Spotted 42 | . 5 18 6 13 Peak Tracking Total 10 | . 4 10 4 8 Tactical Retreats 5 | . . 4 1 . Traps | -11 -10 -9 -9 -8 ------- Run | Yrd Mat Mat Min Mat Traps Triggered 1 | . 1 . . . Indirectly . | . . . . . Trap Hack Attempts . | . . . . . Triggered . | . . . . . Disarmed . | . . . . . Reprogrammed . | . . . . . Reused . | . . . . . Traps Extracted . | . . . . . Installed . | . . . . . Triggered . | . . . . . Machines | -11 -10 -9 -9 -8 ---------- Run | Yrd Mat Mat Min Mat Machines Disabled . | . . . . . Max in Single Turn . | . . . . . Machines Repaired . | . . . . . Machines Dismantled . | . . . . . Machines Sabotaged . | . . . . . Overloaded Fab Kills . | . . . . . Hacking | -11 -10 -9 -9 -8 --------- Run | Yrd Mat Mat Min Mat Machines Accessed 5 | . 1 2 . 2 Terminals 5 | . 1 2 . 2 Fabricators . | . . . . . Repair Stations . | . . . . . Recycling Units . | . . . . . Scanalyzers . | . . . . . Garrison Access . | . . . . . Total Hacks 17 | . 5 6 . 6 Successful 8 | . 1 4 . 3 Failed 9 | . 4 2 . 3 Catastrophic 1 | . 1 . . . Database Lockouts . | . . . . . Manual 1 | . . 1 . . Terminals 17 | . 5 6 . 6 Fabricators . | . . . . . Repair Stations . | . . . . . Recycling Units . | . . . . . Scanalyzers . | . . . . . Garrison Access . | . . . . . Terminal Hacks 8 | . 1 4 . 3 Record 3 | . 1 2 . . Alert Level 1 | . . 1 . . Hauler Manifests 1 | . . . . 1 Registered Components 1 | . . . . 1 Zone Layout 2 | . . 1 . 1 Fabricator Hacks . | . . . . . Repair Station Hacks . | . . . . . Recycling Unit Hacks . | . . . . . Scanalyzer . | . . . . . Garrison Access Hacks . | . . . . . Unauthorized Hacks . | . . . . . Terminals . | . . . . . Fabricators . | . . . . . Repair Stations . | . . . . . Recycling Units . | . . . . . Scanalyzers . | . . . . . Garrison Access . | . . . . . Data Cores Recovered . | . . . . . Used . | . . . . . Hacking Detections 5 | . 1 2 . 2 Full Trace Events 4 | . . 2 . 2 Feedback Events . | . . . . . Feedback Blocked . | . . . . . Robot Schematics Acquired . | . . . . . Robots Built . | . . . . . Authchips . | . . . . . Time . | . . . . . Total Robot Build Rating . | . . . . . Part Schematics Acquired . | . . . . . Parts Built . | . . . . . Authchips . | . . . . . Time . | . . . . . Total Part Build Rating . | . . . . . Parts Repaired . | . . . . . Time . | . . . . . Parts Recycled . | . . . . . Recycled Matter . | . . . . . Retrieved Matter . | . . . . . Retrieved Components . | . . . . . Parts Scanalyzed . | . . . . . Part Schematics Acquired . | . . . . . Parts Damaged . | . . . . . Bothacking | -11 -10 -9 -9 -8 ------------ Run | Yrd Mat Mat Min Mat Used RIF Installer . | . . . . . Robots Hacked . | . . . . . Non-combat . | . . . . . Combat . | . . . . . Robot Hacks Applied . | . . . . . Relay Couplers Released . | . . . . . Fabnet Peak Effective % . | . . . . . Robots Rewired . | . . . . . Allies Hacked . | . . . . . Hacks Repelled . | . . . . . Allies | -11 -10 -9 -9 -8 -------- Run | Yrd Mat Mat Min Mat Total Allies . | . . . . . Largest Group . | . . . . . Highest-Rated Group . | . . . . . Highest-Rated Ally . | . . . . . Total Orders . | . . . . . Ally Attacks . | . . . . . Total Damage . | . . . . . Kills . | . . . . . Allies Corrupted . | . . . . . Allies Melted . | . . . . . Intel | -11 -10 -9 -9 -8 ------- Run | Yrd Mat Mat Min Mat Robot Analysis Total . | . . . . . Derelict Logs Recovered . | . . . . . Drone Launches . | . . . . . Drone Recoveries . | . . . . . Exploration | -11 -10 -9 -9 -8 ------------- Run | Yrd Mat Mat Min Mat Turns Passed 760 | . 274 128 101 257 Spaces Moved 1249 | 1 370 362 232 284 Core 36 | . . . . 36 Treads 4 | . . . . 4 Legs 15 | 1 14 . . . Wheels 13 | . . . . 13 Hover 309 | . 299 . . 10 Flight 872 | . 57 362 232 221 Fastest Speed 34 | 120 37 34 34 34 Average Speed 44 | 120 56 34 34 50 Slowest Speed 170 | 120 130 34 34 170 Overloaded Moves . | . . . . . Propulsion Burnouts . | . . . . . Robots Hopped 7 | . . . 3 4 Cave-ins Triggered . | . . . . . Exploration Rate (%) 30 | 2 41 31 49 30 Regions Visited 4 Branch Regions 1 Pre-discovered Areas . | . . . . . Known Exits Taken 2 | . 1 1 . . Unknown Exits Taken 2 | 1 . . 1 . Scrap Searched . | . . . . . Spaces Dug 3 | . . . . 3 Terrain Destroyed 3 | . . . . 3 Melee 3 | . . . . 3 Projectile . | . . . . . AOE . | . . . . . Terrain Rammed . | . . . . . Walls Destroyed . | . . . . . Machines Disabled . | . . . . . Actions | -11 -10 -9 -9 -8 --------- Run | Yrd Mat Mat Min Mat Total 1395 | . 421 366 247 361 Wait 46 | . 2 . 14 30 Move 1231 | . 369 361 225 276 Hop 7 | . . . 3 4 Pick Up 13 | . 8 1 . 4 Fast Attach 19 | . 6 . 1 12 Attach 10 | . 1 4 . 5 Detach 7 | . 4 . 2 1 Swap 4 | . 3 . . 1 Drop 22 | . 17 . . 5 Fire 29 | . 11 . 2 16 Melee 6 | . . . . 6 Ram 1 | . . . . 1 Kick . | . . . . . Crush . | . . . . . Escape Stasis . | . . . . . Rewire . | . . . . . Trap . | . . . . . Miscellaneous . | . . . . . Route ------- -11/Scrapyard -10/Materials -9/Materials -9/Mines (discovered 2 exits: *Mat x2) -8/Materials History --------- Turn | Location | Event 1 | -11/Scrapyard | Discovered new exit (range 0) 1 | -11/Scrapyard | Entered Materials 269 | -10/Materials | Discovered new exit (range 16) 274 | -10/Materials | Identified exit to Materials 275 | -10/Materials | Entered another Materials area 275 | -9/Materials | Evolved 2 slots: Power x1, Propulsion x1 318 | -9/Materials | Build established: Mutant 401 | -9/Materials | Discovered new exit (range 7) 403 | -9/Materials | Identified exit to Mines 403 | -9/Materials | Entered Mines 430 | -9/Mines | Discovered new exit (range 5) 431 | -9/Mines | Discovered new exit (range 7) 504 | -9/Mines | Entered Materials 504 | -8/Materials | Evolved 2 slots: Propulsion x2 665 | -8/Materials | Core integrity fell below 50% 709 | -8/Materials | Core integrity fell below 20% 758 | -8/Materials | Lost 12 parts (1p5n3u3w) 761 | -8/Materials | Destroyed by G-47 Trooper with Particle Gun Last Messages --------------- 00709_ Lyr. Light Armor Plating destroyed. 00709_ Flight Unit destroyed. 00712_ Slug penetrates G-47 Trooper. 00712_ Slug penetrates Wall. 00712_ K-01 Serf destroyed. 00714_ Com. Wheel destroyed. 00718_ Acquired Airjet. 00719_ Slug penetrates Wall. 00721_ Slammed into Y-45 Defender. 00725_ Slug penetrates Wall. 00727_ Airjet destroyed. 00728_ Slug penetrates Wall. 00734_ Acquired Arm. Treads. 00743_ Acquired Minigun. 00747_ Slug penetrates Wall. 00749_ Hadron Collector disabled. 00750_ Penetrated by Slug. 00751_ Critical hit (Burn: +37). 00756_ Penetrated by Slug. 00756_ Critical hit (Burn: +37). Map ----- +----------------------------------------------------+ | ????????????????????????????????????a????????????? | | ?????????????????????????????????????????????????? | | ?????????????????????????????????????????????????? | | ?????????????????????????????????????????????????? | | ?????????????????????????????????????????????????? | | ?????????????????????????????????????????????????? | | ?????????????????????????????????????????????????? | | ?????????????????????????????????????????????????? | | ?????????????????????????????????????????????????? | | ?????????????????????????????????????????????????? | | ?????????????????????????????????????????????????? | | ?????????????????????????????????????????????????? | | ?????????????????????????????????????????????????? | | ?????????????????????????????????????????????????? | | ##+###???????????????????????????????????????????? | | ! ####????????????????????????????????????????? | | ?????????????????????????????????????????? | | ??????????????????????????????????????????? | | ???????????????????????????????????????????? | | a###########??##########?????????????????????? | | # ## !! #??# #?????????????????????? | | # # ! #??# """" #?? #?????????????????? | | # ## #??# """ #? #?????????????????? | | # ## """T""" #??# "" " # #?????????????????? | | =%##/############Y ts #?????????????????? | | Y/h @ #?????????????????????? | | % ##########g #?????????????????????? | | ## #????????# ! #?????????????????????? | | ?# #????????#! #?????????????????????? | | # #????????##########?????????????????????? | | # #???????????????????????????????????????? | | # #???????????????????????????????????????? | | # #???????????????????????????????????????? | | # #???????????????????????????????????????? | | ## #???????????????????????????????????????? | | ?# #???????????????????????????????????????? | | ?# #???????????????????????????????????????? | | ? +???????????????????????????????????????? | | ?### #???????????????????????????????????????? | | ???# #???????????????????????????????????????? | | ???###+###???????????????????????????????????????? | | ?????????????????????????????????????????????????? | | ?????????????????????????????????????????????????? | | ?????????????????????????????????????????????????? | | ?????????????????????????????????????????????????? | | ?????????????????????????????????????????????????? | | ?????????????????????????????????????????????????? | | ?????????????????????????????????????????????????? | | ?????????????????????????????????????????????????? | | ?????????????????????????????????????????????????? | +----------------------------------------------------+ Best States ------------- Heat Dissipation 31 Energy Generation 15 Energy Capacity 275 Matter Stores 300 Matter Capacity 300 Sight Range 16 Robot Scan Range 14 Terrain Scan Density 10 Additional Mass Support 6 Armor Coverage 150 Evasion (%) 63 Launcher Accuracy 20 Recoil Reduction 3 Item Schematics ----------------- None Robot Schematics ------------------ None Fabricated ------------ Nothing Alien Tech Used ----------------- None Achievements -------------- None Challenges ------------ None Game ------ Seed FlightTargetingLaser Manual? 0 Play Time 00:38:31 Cumulative 16.7 hours Start 2024.04.02 @ 00:06:45 End 2024.04.02 @ 21:12:10 Sessions 3 Manual Loads 0 Difficulty Rogue Special Mode None Game No. 12 Rogue 11 Adventurer 1 Explorer 0 Win Type - Total 0 Types 0/0/0/0/0/0/0/0/0 Lore% 18 Gallery% 20 Achievement% 18 Wizard Run 0 Options --------- Layout 0 ASCII 1 Keyboard 0 Movement Numpad Keybinds 0 Fullscreen 2 Font 18/SmallcapsGlow Map View 76x50 Zoom Use 1% Tactical HUD 1 Map Filters NONE Filters NONE Steam 1 RUN: fb18a651-1584-4d83-aad6-6d2c5caf20b4